fUST/lending_fUST_20241001
["ID","MTS","AMOUNT","RATE_DAILY","PERIOD"]
[339622729,1727760638337,-502.23900011,0.000149,2]
[339622730,1727760638347,-300.0,0.00014906,2]
[339622731,1727760638357,-300.0,0.00014906,2]
[339622732,1727760638367,-157.95927466,0.00015047,2]
[339622733,1727760638377,-580.409299,0.00015147,2]
[339622734,1727760638387,-166.8785108,0.00015479,2]
[339622735,1727760638396,-160.0,0.000155,2]
[339622736,1727760638406,-153.0,0.00015616,2]
[339622737,1727760638415,-153.0,0.00015616,2]
[339622738,1727760638424,-209.3051165,0.00015616,2]
[339622739,1727760638433,-153.0,0.00015616,2]
[339622740,1727760638443,-153.0,0.00015616,2]
[339622741,1727760638452,-153.0,0.00015616,2]
[339622742,1727760638462,-153.0,0.00015616,2]
[339622743,1727760638471,-153.0,0.00015616,2]
[339622744,1727760638481,-153.0,0.00015616,2]
[339622745,1727760638492,-153.0,0.00015616,2]
[339622746,1727760638501,-153.0,0.00015616,2]
[339622747,1727760638510,-153.0,0.00015616,2]
[339622748,1727760638520,-153.0,0.00015616,2]
[339622749,1727760638530,-306.0,0.00015616,2]
[339622750,1727760638540,-153.0,0.00015616,2]
[339622751,1727760638550,-153.0968087,0.00015616,2]
[339622752,1727760638560,-153.0,0.00015616,2]
[339622753,1727760638570,-153.0,0.00015616,2]
[339622754,1727760638580,-153.0,0.00015616,2]
[339622755,1727760638589,-306.0,0.00015616,2]
[339622756,1727760638597,-153.0,0.00015616,2]
[339622757,1727760638607,-153.0,0.00015616,2]
[339622758,1727760638617,-153.0,0.00015616,2]
[339622759,1727760638627,-153.0,0.00015616,2]
[339622760,1727760638637,-153.0,0.00015616,2]
[339622761,1727760638648,-153.0,0.00015753,2]
[339622762,1727760638657,-153.0,0.00015753,2]
[339622763,1727760638666,-153.0,0.00015753,2]
[339622764,1727760638676,-153.0,0.00015753,2]
[339622765,1727760638687,-153.0,0.00015753,2]
[339622766,1727760638697,-153.0,0.00015753,2]
[339622767,1727760638706,-153.0,0.00015753,2]
[339622768,1727760638715,-153.0,0.00015753,2]
[339622769,1727760638724,-490.44333721,0.00015871,2]
[339622770,1727760638734,-233.7495503,0.0001589,2]
[339622771,1727760638743,-412.6084831,0.0001589,2]
[339622772,1727760638753,-412.041739,0.0001589,2]
[339622773,1727760638763,-203.48,0.00016,2]
[339622774,1727760638772,-6775.95803328,0.0001611,2]
[339622775,1727760638783,-153.0,0.00016164,2]
[339622776,1727760638792,-153.0,0.00016164,2]
[339622777,1727760638803,-153.0,0.00016164,2]
[339622778,1727760638813,-153.0,0.00016164,2]
[339622779,1727760638822,-158.51635062,0.00016307,2]
[339622780,1727760638833,-1000.0,0.00016307,2]
[339622781,1727760638843,-420.0,0.00016315,2]
[339622782,1727760638852,-158.5163506,0.00016317,2]
[339622783,1727760638862,-158.5163506,0.00016328,2]
[339622784,1727760638873,-1169.92366703,0.00016328,2]
[339622785,1727760638883,-158.5163506,0.00016338,2]
[339622786,1727760638892,-225.26234113,0.00016395,2]
[339622787,1727760638902,-19875.9654702,0.00016395,2]
[339622788,1727760638911,-225.26234113,0.00016398,2]
[339622789,1727760638920,-19875.9654702,0.00016398,2]
[339622790,1727760638930,-225.26234113,0.00016398,2]
[339622791,1727760638940,-19875.9654702,0.00016398,2]
[339622792,1727760638950,-225.26234113,0.00016398,2]
[339622793,1727760638974,-19875.9654702,0.00016398,2]
[339622794,1727760638985,-151.0,0.00016407,2]
[339622795,1727760638995,-151.0,0.00016407,2]
[339622796,1727760639005,-234.868263,0.00016407,2]
[339622797,1727760639015,-151.0,0.00016407,2]
[339622798,1727760639026,-234.868263,0.00016407,2]
[339622799,1727760639035,-151.0,0.00016407,2]
[339622800,1727760639045,-151.0,0.00016407,2]
[339622801,1727760639055,-151.0,0.00016407,2]
[339622802,1727760639065,-1041.351533,0.00016407,2]
[339622803,1727760639074,-1041.351533,0.00016407,2]
[339622804,1727760639084,-151.0,0.00016407,2]
[339622805,1727760639093,-1565.428707,0.00016407,2]
[339622806,1727760639103,-1565.428707,0.00016407,2]
[339622807,1727760639113,-151.0,0.00016407,2]
[339622808,1727760639124,-317.062864,0.00016407,2]
[339622809,1727760639133,-222.25882528,0.00016407,2]
[339622810,1727760639144,-500.0,0.00016407,2]
[339622811,1727760639154,-500.0,0.00016407,2]
[339622812,1727760639164,-500.0,0.00016407,2]
[339622813,1727760639174,-500.0,0.00016407,2]
[339622814,1727760639184,-500.0,0.00016407,2]
[339622815,1727760639194,-500.0,0.00016407,2]
[339622816,1727760639203,-500.0,0.00016407,2]
[339622817,1727760639213,-500.0,0.00016407,2]
[339622818,1727760639223,-500.0,0.00016407,2]
[339622819,1727760639232,-500.0,0.00016407,2]
[339622820,1727760639242,-500.0,0.00016407,2]
[339622821,1727760639252,-500.0,0.00016407,2]
[339622822,1727760639262,-500.0,0.00016407,2]
[339622823,1727760639272,-500.0,0.00016407,2]
[339622824,1727760639282,-358.36719688,0.00016407,2]
[339622825,1727760639292,-500.0,0.00016407,2]
[339622826,1727760639301,-500.0,0.00016407,2]
[339622827,1727760639311,-500.0,0.00016407,2]
[339622828,1727760639324,-500.0,0.00016407,2]
[339622829,1727760639334,-500.0,0.00016407,2]
[339622830,1727760639343,-500.0,0.00016407,2]
[339622831,1727760639353,-500.0,0.00016407,2]
[339622832,1727760639363,-500.0,0.00016407,2]
[339622833,1727760639373,-500.0,0.00016407,2]
[339622834,1727760639383,-500.0,0.00016407,2]
[339622835,1727760639392,-500.0,0.00016407,2]
[339622836,1727760639402,-500.0,0.00016407,2]
[339622837,1727760639412,-500.0,0.00016407,2]
[339622838,1727760639422,-225.26234113,0.00016408,2]
[339622839,1727760639431,-10440.24577617,0.00016408,2]
[339622842,1727760640221,-317.062864,0.00016407,2]
[339622843,1727760640231,-9435.71969403,0.00016408,2]
[339622844,1727760640241,-151.0,0.00016408,2]
[339622845,1727760640251,-151.0,0.00016408,2]
[339622846,1727760640260,-151.0,0.00016408,2]
[339622847,1727760640270,-152.560894,0.00016408,2]
[339622848,1727760640281,-151.0,0.00016408,2]
[339622849,1727760640290,-154.394769,0.00016408,2]
[339622850,1727760640300,-151.0,0.00016408,2]
[339622851,1727760640310,-151.0,0.00016408,2]
[339622852,1727760640321,-151.0,0.00016408,2]
[339622853,1727760640331,-151.0,0.00016408,2]
[339622854,1727760640340,-380.516917,0.00016408,2]
[339622855,1727760640350,-380.516917,0.00016408,2]
[339622856,1727760640359,-152.003829,0.00016408,2]
[339622857,1727760640369,-218.184276,0.00016408,2]
[339622858,1727760640378,-218.184276,0.00016408,2]
[339622859,1727760640387,-151.0,0.00016408,2]
[339622860,1727760640396,-151.0,0.00016408,2]
[339622861,1727760640406,-151.0,0.00016408,2]
[339622862,1727760640415,-151.0,0.00016408,2]
[339622863,1727760640425,-153.305633,0.00016408,2]
[339622864,1727760640434,-151.0,0.00016408,2]
[339622865,1727760640444,-151.0,0.00016408,2]
[339622866,1727760640453,-284.014723,0.00016408,2]
[339622867,1727760640463,-195.774956,0.00016408,2]
[339622868,1727760640472,-889.885496,0.00016408,2]
[339622869,1727760640482,-889.885496,0.00016408,2]
[339622870,1727760640492,-889.885496,0.00016408,2]
[339622871,1727760640501,-889.885496,0.00016408,2]
[339622872,1727760640511,-889.885496,0.00016408,2]
[339622873,1727760640520,-889.885496,0.00016408,2]
[339622874,1727760640529,-169.228699,0.00016408,2]
[339622875,1727760640539,-169.228699,0.00016408,2]
[339622876,1727760640548,-169.228699,0.00016408,2]
[339622877,1727760640558,-157.306913,0.00016408,2]
[339622878,1727760640567,-169.228699,0.00016408,2]
[339622879,1727760640576,-169.228699,0.00016408,2]
[339622880,1727760640585,-169.228699,0.00016408,2]
[339622881,1727760640595,-151.0,0.00016408,2]
[339622882,1727760640605,-269.652176,0.00016408,2]
[339622883,1727760640618,-151.0,0.00016408,2]
[339622884,1727760640631,-151.0,0.00016408,2]
[339622885,1727760640641,-151.0,0.00016408,2]
[339622886,1727760640651,-234.868263,0.00016408,2]
[339622887,1727760640660,-234.868263,0.00016408,2]
[339622888,1727760640670,-234.868263,0.00016408,2]
[339622889,1727760640679,-216.808541,0.00016408,2]
[339622890,1727760640689,-234.868263,0.00016408,2]
[339622891,1727760640698,-234.868263,0.00016408,2]
[339622892,1727760640708,-234.868263,0.00016408,2]
[339622893,1727760640718,-151.0,0.00016408,2]
[339622894,1727760640728,-151.0,0.00016408,2]
[339622895,1727760640737,-151.0,0.00016408,2]
[339622896,1727760640747,-151.0,0.00016408,2]
[339622897,1727760640757,-151.0,0.00016408,2]
[339622898,1727760640766,-151.0,0.00016408,2]
[339622899,1727760640776,-151.0,0.00016408,2]
[339622900,1727760640786,-151.0,0.00016408,2]
[339622901,1727760640795,-153.138974,0.00016408,2]
[339622902,1727760640804,-1041.351533,0.00016408,2]
[339622903,1727760640813,-1041.351533,0.00016408,2]
[339622904,1727760640822,-1041.351533,0.00016408,2]
[339622905,1727760640832,-1041.351533,0.00016408,2]
[339622906,1727760640842,-1041.351533,0.00016408,2]
[339622907,1727760640851,-1041.351533,0.00016408,2]
[339622908,1727760640860,-151.0,0.00016408,2]
[339622909,1727760640870,-151.0,0.00016408,2]
[339622910,1727760640880,-151.0,0.00016408,2]
[339622911,1727760640889,-1565.428707,0.00016408,2]
[339622912,1727760640898,-1565.428707,0.00016408,2]
[339622913,1727760640908,-1565.428707,0.00016408,2]
[339622914,1727760640918,-1565.428707,0.00016408,2]
[339622915,1727760640927,-1565.428707,0.00016408,2]
[339622916,1727760640937,-1565.428707,0.00016408,2]
[339622917,1727760640947,-151.0,0.00016408,2]
[339622918,1727760640956,-170.188461,0.00016408,2]
[339622919,1727760640966,-317.062864,0.00016408,2]
[339622920,1727760640975,-317.062864,0.00016408,2]
[339622921,1727760640984,-317.062864,0.00016408,2]
[339622922,1727760640994,-317.062864,0.00016408,2]
[339622923,1727760641004,-317.062864,0.00016408,2]
[339622924,1727760641013,-317.062864,0.00016408,2]
[339622925,1727760641023,-225.26234113,0.00016408,2]
[339622926,1727760641032,-19875.9654702,0.00016408,2]
[339622927,1727760641041,-450.52468226,0.00016408,2]
[339622928,1727760641051,-14317.00869388,0.00016408,2]
[339622930,1727760643120,-345.29652378,0.00016407,2]
[339622931,1727760643136,-112.44312122,0.00016407,2]
[339622932,1727760643146,-428.54488907,0.00016408,2]
[339622933,1727760643158,-29.19475593,0.00016408,2]
[339622934,1727760643167,-457.739645,0.00016408,2]
[339622935,1727760643176,-457.739645,0.00016408,2]
[339622936,1727760643186,-10.32595407,0.00016408,2]
[339622968,1727760646038,-457.739645,0.00016407,2]
[339622969,1727760646048,-457.739645,0.00016408,2]
[339622970,1727760646057,-1524.97071,0.00016408,2]
[339623074,1727761840339,-236.33,0.00010959,2]
[339623075,1727761840349,-290.20465,0.0001521,2]
[339623076,1727761840359,-219.610975,0.00015229,2]
[339623077,1727761840369,-812.2891001,0.00015231,2]
[339623078,1727761840379,-7193.10270582,0.00016134,2]
[339623079,1727761840388,-300.0,0.00016207,2]
[339623080,1727761840398,-2500.0,0.00016208,2]
[339623081,1727761840408,-183.13,0.000163,2]
[339623082,1727761840418,-153.0,0.000163,2]
[339623083,1727761840428,-157.06439412,0.00016318,2]
[339623084,1727761840437,-1052.9313003,0.00016338,2]
[339623085,1727761840448,-612.89,0.00016398,2]
[339623086,1727761840458,-153.0,0.000164,2]
[339623087,1727761840468,-153.0,0.000164,2]
[339623088,1727761840488,-153.0,0.000164,2]
[339623089,1727761840499,-153.0,0.000164,2]
[339623090,1727761840510,-153.0,0.000164,2]
[339623091,1727761840520,-153.0,0.000164,2]
[339623092,1727761840530,-153.0,0.000164,2]
[339623093,1727761840540,-224.38241013,0.00016408,2]
[339623094,1727761840551,-13120.5605613,0.00016408,2]
[339623095,1727761840561,-1128.4164496,0.00016417,2]
[339623096,1727761840571,-424.89996784,0.00016417,2]
[339623097,1727761840581,-211.09804772,0.00016418,2]
[339623098,1727761840591,-224.38241013,0.00016418,2]
[339623099,1727761840601,-13120.5605613,0.00016418,2]
[339623100,1727761840612,-1570.67687091,0.00016418,2]
[339623101,1727761840622,-33731.74352314,0.00016418,2]
[339623133,1727762080899,2803.87700198,0.00010101,2]
[339623141,1727762421024,800.0,0.0002,60]
[339623154,1727762801771,5000.0,0.00010101,2]
[339623275,1727763040516,-219.610975,0.0001457,2]
[339623276,1727763040526,-166.729448,0.00014766,2]
[339623277,1727763040535,-166.15293347,0.00015,2]
[339623278,1727763040544,-166.729448,0.00015451,2]
[339623279,1727763040554,-300.0,0.00015549,2]
[339623280,1727763040563,-221.21363039,0.0001555,2]
[339623281,1727763040572,-80684.83462124,0.0001555,2]
[339623282,1727763040582,-466.27216686,0.00015831,2]
[339623283,1727763040591,-247.267469,0.00015952,2]
[339623284,1727763040600,-6775.95803328,0.00016007,2]
[339623285,1727763040610,-296.863,0.00016008,2]
[339623286,1727763040619,-166.729448,0.00016136,2]
[339623287,1727763040632,-319.35,0.00016163,2]
[339623288,1727763040642,-1000.0,0.00016299,2]
[339623289,1727763040651,-183.13,0.000163,2]
[339623290,1727763040660,-290952.9379767,0.00016338,2]
[339623291,1727763040670,-1145.73699693,0.00016338,2]
[339623292,1727763040679,-1436.20917067,0.00016338,2]
[339623293,1727763040688,-5405.03847349,0.00016398,2]
[339623300,1727763043499,-10064.88950191,0.00016398,2]
[339623301,1727763043511,-30928.43149466,0.00016398,2]
[339623346,1727763818500,-500.0,0.00021917,120]
[339623347,1727763818542,-500.0,0.00021917,120]
[339623348,1727763818585,-536.3618221,0.00021917,120]
[339623413,1727764232669,-2500.0,0.000149,2]
[339623415,1727764232680,-1695.3075142,0.00015019,2]
[339623418,1727764232691,-4339.4924858,0.00015099,2]
[339623420,1727764232701,-219.610975,0.00015172,2]
[339623422,1727764232711,-300.0,0.00015894,2]
[339623424,1727764232722,-300.0,0.00015894,2]
[339623425,1727764232732,-613.3911422,0.00015895,2]
[339623434,1727764240802,-6055.47383829,0.00015895,2]
[339623475,1727764295497,500.0,0.00021917,120]
[339623476,1727764295755,540.80119506,0.00021917,120]
[339623493,1727764891874,500.0,0.00021917,120]
[339623494,1727764892172,500.0,0.00021917,120]
[339623495,1727764892432,500.0,0.00021917,120]
[339623496,1727764892698,536.3618221,0.00021917,120]
[339623504,1727765113080,1000.0,0.00022,120]
[339623505,1727765123257,1000.0,0.00021,60]
[339623507,1727765182643,10000.0,0.00010101,2]
[339623508,1727765191067,10000.0,0.00010101,2]
[339623509,1727765200001,10000.0,0.00010101,2]
[339623510,1727765206140,10000.0,0.00010101,2]
[339623511,1727765211866,10000.0,0.00010101,2]
[339623512,1727765227258,10000.0,0.00010101,2]
[339623513,1727765245396,1931.0,0.00010101,2]
[339623537,1727765431827,-163.76,0.00010959,2]
[339623540,1727765431840,-159.0,0.000139,2]
[339623542,1727765431853,-159.0,0.0001414,2]
[339623544,1727765431865,-159.0,0.0001438,2]
[339623547,1727765431879,-159.0,0.0001462,2]
[339623549,1727765431891,-300.0,0.00014725,2]
[339623552,1727765431904,-300.0,0.00014725,2]
[339623555,1727765431928,-4119.16076957,0.00014726,2]
[339623592,1727765438445,-20780.83923043,0.00014726,2]
[339623593,1727765438455,-324.17440602,0.00015096,2]
[339623594,1727765438465,-160.38003,0.00015196,2]
[339623595,1727765438475,-160.38003,0.00015245,2]
[339623596,1727765438484,-743.52705645,0.00015245,2]
[339623597,1727765438493,-160.38003,0.00015295,2]
[339623598,1727765438503,-159.0,0.0001534,2]
[339623599,1727765438513,-160.38003,0.00015344,2]
[339623600,1727765438522,-160.38003,0.00015394,2]
[339623601,1727765438532,-160.38003,0.00015443,2]
[339623602,1727765438541,-160.38003,0.00015493,2]
[339623603,1727765438550,-160.38003,0.00015542,2]
[339623604,1727765438559,-160.38003,0.00015592,2]
[339623605,1727765438569,-160.38003,0.00015641,2]
[339623606,1727765438579,-160.38003,0.00015691,2]
[339623607,1727765438587,-357.22443891,0.00015706,2]
[339623608,1727765438597,-160.38003,0.0001574,2]
[339623609,1727765438606,-160.38003,0.0001579,2]
[339623610,1727765438615,-465.06360834,0.00015791,2]
[339623611,1727765438625,-194.08780366,0.00015835,2]
[339623612,1727765438634,-160.38003,0.00015839,2]
[339623613,1727765438643,-3786.43522002,0.00015854,2]
[339623628,1727765439908,-2015.37606682,0.00015854,2]
[339623629,1727765439917,-160.38003,0.00015889,2]
[339623630,1727765439928,-153.0,0.000159,2]
[339623631,1727765439937,-153.0,0.000159,2]
[339623632,1727765439946,-153.0,0.000159,2]
[339623633,1727765439956,-160.38003,0.00015938,2]
[339623634,1727765439967,-160.38003,0.00015988,2]
[339623635,1727765439976,-153.0,0.00016,2]
[339623636,1727765439985,-153.0,0.00016,2]
[339623637,1727765439995,-153.0,0.00016,2]
[339623638,1727765440004,-306.0,0.00016,2]
[339623639,1727765440014,-153.0,0.00016,2]
[339623640,1727765440024,-1000.0,0.00016,7]
[339623641,1727765440033,-1510.48664348,0.00016014,2]
[339623642,1727765440042,-159.0,0.0001606,2]
[339623643,1727765440052,-209.3051165,0.00016082,2]
[339623644,1727765440061,-419.9919851,0.00016082,2]
[339623645,1727765440071,-306.0,0.00016082,2]
[339623646,1727765440080,-412.6084831,0.00016082,2]
[339623647,1727765440089,-418.610233,0.00016082,2]
[339623648,1727765440098,-420.0,0.0001612,2]
[339623649,1727765440107,-157.81952886,0.00016274,2]
[339623650,1727765440116,-172.84342804,0.00016298,2]
[339623651,1727765440125,-172.84342802,0.00016306,2]
[339623652,1727765440134,-211.35513414,0.00016307,2]
[339623653,1727765440143,-172.84342802,0.00016314,2]
[339623654,1727765440152,-1145.73699693,0.00016338,2]
[339623655,1727765440161,-525.945,0.00016362,2]
[339623656,1727765440170,-150.303,0.00016362,2]
[339623657,1727765440180,-1218.989,0.00016362,2]
[339623658,1727765440189,-41050.8410042,0.00016398,2]
[339623659,1727765440198,-249.30469815,0.00016398,2]
[339623660,1727765440207,-249.0489296,0.00016398,2]
[339623661,1727765440217,-374.74632064,0.000164,2]
[339623662,1727765440227,-450.66780173,0.000164,3]
[339623663,1727765440236,-240.45,0.000164,2]
[339623664,1727765440245,-150.112233,0.000164,2]
[339623665,1727765440254,-150.112233,0.000164,2]
[339623666,1727765440263,-151.997847,0.000164,2]
[339623667,1727765440272,-41050.8410042,0.00016404,2]
[339623668,1727765440283,-500.0,0.00016407,2]
[339623669,1727765440293,-500.0,0.00016407,2]
[339623670,1727765440302,-470.89604725,0.00016407,2]
[339623671,1727765440311,-500.0,0.00016407,2]
[339623672,1727765440320,-500.0,0.00016407,2]
[339623673,1727765440330,-500.0,0.00016407,2]
[339623674,1727765440339,-500.0,0.00016407,2]
[339623675,1727765440348,-500.0,0.00016407,2]
[339623676,1727765440361,-241.88955893,0.00016407,2]
[339623677,1727765440370,-500.0,0.00016407,2]
[339623678,1727765440379,-500.0,0.00016407,2]
[339623679,1727765440389,-500.0,0.00016407,2]
[339623680,1727765440398,-500.0,0.00016407,2]
[339623681,1727765440408,-500.0,0.00016407,2]
[339623682,1727765440418,-500.0,0.00016407,2]
[339623683,1727765440427,-182.41679228,0.00016407,2]
[339623684,1727765440437,-500.0,0.00016407,2]
[339623685,1727765440446,-500.0,0.00016407,2]
[339623686,1727765440456,-500.0,0.00016407,2]
[339623687,1727765440465,-500.0,0.00016407,2]
[339623688,1727765440475,-500.0,0.00016407,2]
[339623689,1727765440484,-500.0,0.00016407,2]
[339623690,1727765440493,-500.0,0.00016407,2]
[339623691,1727765440502,-500.0,0.00016407,2]
[339623692,1727765440511,-500.0,0.00016407,2]
[339623693,1727765440520,-500.0,0.00016407,2]
[339623694,1727765440529,-500.0,0.00016407,2]
[339623695,1727765440539,-500.0,0.00016407,2]
[339623696,1727765440548,-500.0,0.00016407,2]
[339623697,1727765440557,-500.0,0.00016407,2]
[339623698,1727765440566,-500.0,0.00016407,2]
[339623699,1727765440575,-500.0,0.00016407,2]
[339623700,1727765440584,-500.0,0.00016407,2]
[339623701,1727765440593,-500.0,0.00016407,2]
[339623702,1727765440603,-500.0,0.00016407,2]
[339623703,1727765440612,-500.0,0.00016407,2]
[339623704,1727765440621,-412.86108747,0.00016407,2]
[339623710,1727765445782,-87.13891253,0.00016407,2]
[339623711,1727765445792,-500.0,0.00016407,2]
[339623712,1727765445802,-39.54404345,0.00016407,2]
[339623714,1727765583263,133619.849399,0.00018,60]
[339623811,1727766632117,-827.38,0.00010959,2]
[339623813,1727766632127,-300.0,0.00013114,2]
[339623815,1727766632136,-300.0,0.00013114,2]
[339623817,1727766632146,-18912.69214195,0.00013115,2]
[339623819,1727766632158,-462.46397076,0.00013115,2]
[339623821,1727766632169,-931.9487063,0.00013115,2]
[339623824,1727766632182,-4592.89518099,0.00013115,2]
[339623826,1727766632191,-163.521358,0.00013487,2]
[339623828,1727766632202,-3000.0,0.00013517,2]
[339623830,1727766632211,-163.521358,0.00013604,2]
[339623832,1727766632221,-219.101271,0.00013699,2]
[339623834,1727766632231,-1408.321361,0.00013699,2]
[339623836,1727766632240,-311.88750274,0.00013699,2]
[339623838,1727766632249,-163.521358,0.00013721,2]
[339623840,1727766632259,-457.6319116,0.000138,2]
[339623842,1727766632268,-163.521358,0.00013838,2]
[339623844,1727766632278,-169.0,0.000139,2]
[339623846,1727766632288,-163.521358,0.00013955,2]
[339623848,1727766632297,-169.0,0.0001406,2]
[339623850,1727766632305,-163.521358,0.00014073,2]
[339623852,1727766632315,-163.521358,0.0001419,2]
[339623853,1727766632324,-169.0,0.0001421,2]
[339623855,1727766632334,-169.0,0.0001437,2]
[339623857,1727766632344,-420.0,0.0001438,2]
[339623859,1727766632354,-856.51326667,0.00014384,2]
[339623862,1727766632366,-551.80809433,0.00014384,2]
[339623863,1727766632376,-169.0,0.0001452,2]
[339623865,1727766632386,-169.0,0.0001468,2]
[339623867,1727766632395,-779.88898434,0.00014888,2]
[339623904,1727766638133,-388.94201206,0.00014888,2]
[339623905,1727766638145,-1347.40426174,0.00014888,2]
[339623906,1727766638207,-1951.97828487,0.00014888,2]
[339623907,1727766638217,-12601.93468522,0.00015,2]
[339623908,1727766638229,-334.29470453,0.00015,2]
[339623925,1727766640055,-27237.26061025,0.00015,2]
[339623926,1727766640065,-1408.321361,0.00015068,2]
[339623927,1727766640075,-169.0,0.0001514,2]
[339623928,1727766640085,-593.93657544,0.00015295,2]
[339623929,1727766640095,-153.0,0.00015342,2]
[339623930,1727766640105,-153.0,0.00015342,2]
[339623931,1727766640115,-153.0,0.00015342,2]
[339623932,1727766640125,-153.0,0.00015342,2]
[339623933,1727766640136,-252.56490565,0.0001537,2]
[339623934,1727766640146,-17260.1287485,0.0001546,2]
[339623935,1727766640157,-36945.7569038,0.0001546,2]
[339623936,1727766640167,-500.0,0.00015468,2]
[339623937,1727766640177,-500.0,0.00015468,2]
[339623938,1727766640187,-500.0,0.00015468,2]
[339623939,1727766640199,-500.0,0.00015468,2]
[339623940,1727766640209,-500.0,0.00015468,2]
[339623941,1727766640219,-336.04797567,0.00015468,2]
[339623942,1727766640229,-500.0,0.00015468,2]
[339623943,1727766640238,-500.0,0.00015468,2]
[339623944,1727766640248,-500.0,0.00015468,2]
[339623945,1727766640257,-500.0,0.00015468,2]
[339623946,1727766640267,-500.0,0.00015468,2]
[339623947,1727766640277,-329.11036196,0.00015468,2]
[339623948,1727766640286,-500.0,0.00015468,2]
[339623949,1727766640296,-500.0,0.00015468,2]
[339623950,1727766640305,-500.0,0.00015468,2]
[339623951,1727766640314,-500.0,0.00015468,2]
[339623952,1727766640324,-500.0,0.00015468,2]
[339623953,1727766640334,-500.0,0.00015468,2]
[339623954,1727766640343,-500.0,0.00015468,2]
[339623955,1727766640353,-500.0,0.00015468,2]
[339623956,1727766640363,-500.0,0.00015468,2]
[339623957,1727766640372,-500.0,0.00015468,2]
[339623958,1727766640382,-618.24167923,0.00015468,2]
[339623959,1727766640391,-500.0,0.00015468,2]
[339623960,1727766640402,-500.0,0.00015468,2]
[339623961,1727766640411,-500.0,0.00015468,2]
[339623962,1727766640421,-500.0,0.00015468,2]
[339623963,1727766640430,-500.0,0.00015468,2]
[339623964,1727766640440,-500.0,0.00015468,2]
[339623965,1727766640451,-500.0,0.00015468,2]
[339623966,1727766640460,-500.0,0.00015468,2]
[339623967,1727766640469,-500.0,0.00015468,2]
[339623968,1727766640479,-500.0,0.00015468,2]
[339623969,1727766640488,-500.0,0.00015468,2]
[339623970,1727766640497,-500.0,0.00015468,2]
[339623971,1727766640507,-500.0,0.00015468,2]
[339623972,1727766640516,-500.0,0.00015468,2]
[339623973,1727766640527,-500.0,0.00015468,2]
[339623974,1727766640536,-500.0,0.00015468,2]
[339623975,1727766640545,-500.0,0.00015468,2]
[339623976,1727766640555,-500.0,0.00015468,2]
[339623977,1727766640564,-500.0,0.00015468,2]
[339623978,1727766640573,-500.0,0.00015468,2]
[339623979,1727766640582,-500.0,0.00015468,2]
[339623980,1727766640591,-500.0,0.00015468,2]
[339623981,1727766640600,-272.75596599,0.00015468,2]
[339623982,1727766640611,-500.0,0.00015468,2]
[339623983,1727766640621,-372.43108419,0.00015468,2]
[339623984,1727766640839,-17260.1287485,0.00015469,2]
[339623985,1727766640849,-36945.7569038,0.00015469,2]
[339623986,1727766640859,-267.30531321,0.00015469,2]
[339623987,1727766640868,-500.0,0.00015469,2]
[339623988,1727766640878,-500.0,0.00015469,2]
[339623989,1727766640888,-192.77045029,0.00015469,2]
[339623990,1727766640897,-500.0,0.00015469,2]
[339623991,1727766640906,-500.0,0.00015469,2]
[339623992,1727766640916,-382.92452357,0.00015469,2]
[339623993,1727766640925,-500.0,0.00015469,2]